bitfinex-derivatives/quotes_ETHF0:USTF0_20241229
["timestamp","ask_amount","ask_price","bid_price","bid_amount"]
[1735490331260,3.2078,3352.0,3351.5,2.91511325]
[1735490331461,3.43065685,3352.1,3351.9,2.91511325]
[1735490331663,3.43065685,3352.1,3352.0,2.1621]
[1735490331867,0.29885,3351.9,3351.8,1.245]
[1735490332167,3.72949685,3352.1,3351.8,1.54386]
[1735490332469,3.2078,3352.4,3351.8,1.245]
[1735490332966,0.29885,3352.0,3351.8,1.245]
[1735490333365,0.29885,3351.9,3351.8,1.245]
[1735490334557,0.29885,3352.0,3351.8,1.245]
[1735490334963,3.2078,3352.4,3351.8,1.54386]
[1735490335369,0.29884,3352.1,3351.9,0.29885]
[1735490336167,3.50661,3352.4,3352.2,0.29882]
[1735490336366,0.29882,3352.3,3352.1,0.29883]
[1735490336767,3.43065685,3352.7,3352.0,3.2078]
[1735490336962,0.29879,3352.6,3352.2,0.29883]
[1735490337163,0.29882,3352.4,3352.2,0.29883]
[1735490337478,0.29882,3352.3,3352.2,0.29883]
[1735490338466,6.63845685,3352.8,3352.2,0.29883]
[1735490338667,0.29881,3352.4,3352.2,0.29883]
[1735490339465,6.63845685,3352.8,3352.0,3.2078]
[1735490339670,0.29881,3352.5,3352.2,0.29882]
[1735490340081,0.29879,3352.7,3352.5,0.2988]
[1735490340272,0.29879,3352.7,3352.6,1.261]
[1735490340571,0.29879,3352.7,3352.6,1.55979]
[1735490340768,0.29878,3352.8,3352.6,1.55979]
[1735490341272,3.43065685,3352.9,3352.6,1.261]
[1735490341471,0.29878,3352.7,3352.6,1.261]
[1735490341769,0.29878,3352.8,3352.6,1.55979]
[1735490341971,0.29877,3352.9,3352.7,0.29878]
[1735490342189,0.29877,3352.8,3352.6,1.55979]
[1735490342473,6.63845685,3353.3,3352.6,1.55979]
[1735490342474,6.63845685,3353.3,3352.6,1.261]
[1735490342671,0.29877,3352.9,3352.7,0.29878]
[1735490342968,6.63845685,3353.3,3352.6,1.261]
[1735490343166,0.29878,3352.7,3352.6,1.261]
[1735490343364,0.74688,3353.1,3352.4,3.2078]
[1735490343667,0.2988,3352.5,3352.4,3.2078]
[1735490343871,0.29882,3352.3,3352.2,1.261]
[1735490344268,0.29882,3352.3,3352.1,0.29884]
[1735490344467,2.1871,3352.8,3352.0,4.4688]
[1735490344667,0.29879,3352.7,3352.5,0.2988]
[1735490344866,3.2078,3352.9,3352.5,0.2988]
[1735490345069,3.2078,3352.9,3352.0,4.4688]
[1735490345270,0.29879,3352.7,3352.0,4.4688]
[1735490345470,0.29879,3352.7,3352.5,0.29879]
[1735490345677,3.50657,3352.9,3352.5,1.261]
[1735490345868,0.29878,3352.7,3352.6,2.47159]
[1735490346066,0.29879,3352.6,3352.5,1.261]
[1735490346266,0.29879,3352.6,3352.0,3.2078]
[1735490346267,0.29882,3352.3,3352.2,0.29882]
[1735490346466,0.29882,3352.3,3352.2,1.55982]
[1735490346677,0.29878,3352.7,3352.3,0.29881]
[1735490346878,0.29881,3352.5,3352.3,0.29882]
[1735490347377,1.1023,3352.8,3352.1,2.1728]
[1735490347669,0.29883,3352.2,3352.1,3.73264]
[1735490347871,1.062,3352.7,3352.1,3.4338]
[1735490348171,3.2078,3352.9,3352.1,3.4338]
[1735490348681,0.29883,3352.2,3352.1,2.65623]
[1735490348868,1.82374,3352.8,3352.1,2.3574]
[1735490349067,0.29883,3352.3,3352.2,0.29882]
[1735490349468,1.82374,3352.8,3352.3,0.29881]
[1735490349469,0.29877,3352.8,3352.3,0.29881]
[1735490349876,3.2078,3352.9,3352.3,0.29881]
[1735490350379,0.29881,3352.4,3352.3,0.29881]
[1735490351172,3.2078,3352.9,3352.1,2.3574]
[1735490351572,3.2078,3352.9,3352.4,0.2988]
[1735490351770,0.2988,3352.5,3352.1,2.3574]
[1735490352077,3.2078,3352.9,3352.3,0.29881]
[1735490352276,3.2078,3352.9,3352.4,0.29881]
[1735490352277,0.29881,3352.5,3352.4,0.29881]
[1735490352672,0.2988,3352.5,3352.4,0.29881]
[1735490353774,0.2988,3352.6,3352.4,0.29881]
[1735490353969,1.35526,3353.0,3352.6,0.29879]
[1735490354175,1.0565,3353.0,3352.5,3.2078]
[1735490354376,0.29878,3352.7,3352.6,0.29879]
[1735490354773,1.0565,3353.0,3352.5,3.2078]
[1735490355075,0.29879,3352.7,3352.6,0.29879]
[1735490355670,1.0952,3353.2,3352.7,0.29878]
[1735490355868,1.0952,3353.2,3352.5,3.2078]
[1735490356068,0.29879,3352.7,3352.6,0.29879]
[1735490356674,0.29879,3352.6,3352.5,3.5066]
[1735490356979,0.29879,3352.7,3352.6,0.29879]
[1735490357674,0.29879,3352.7,3352.6,3.50659]
[1735490358576,0.29878,3352.8,3352.7,0.29878]
[1735490359074,0.74683,3353.3,3352.6,5.46781694]
[1735490359380,0.29878,3352.8,3352.7,0.29878]
[1735490361178,0.74683,3353.3,3352.6,5.46781694]
[1735490361770,0.74683,3353.3,3352.8,3.50657]
[1735490361975,1.0515,3353.4,3352.9,1.261]
[1735490362377,0.29876,3353.0,3352.9,1.55976]
[1735490363989,0.29876,3353.0,3352.9,1.261]
[1735490364276,0.29876,3352.9,3352.8,3.2078]
[1735490364477,1.35366,3352.9,3352.8,3.2078]
[1735490366181,0.2988,3352.5,3352.4,2.3599]
[1735490366374,0.2988,3352.5,3352.4,1.261]
[1735490366782,0.29882,3352.3,3352.2,0.29882]
[1735490366991,0.29882,3352.3,3352.2,1.252]
[1735490368390,0.29882,3352.3,3352.2,1.55083]
[1735490368987,0.29882,3352.4,3352.3,0.29881]
[1735490369484,0.29882,3352.3,3352.2,1.55082]
[1735490369986,3.2078,3352.7,3352.2,1.252]
[1735490370187,0.29882,3352.3,3352.2,1.55082]
[1735490371380,0.29881,3352.4,3352.3,0.29881]
[1735490371581,0.29876,3353.0,3352.8,0.29877]
[1735490371779,0.29876,3353.0,3352.9,0.29876]
[1735490371980,6.93720685,3353.1,3353.0,0.29876]
[1735490372180,3.72940685,3353.1,3353.0,41.09876]
[1735490372685,3.72938685,3353.4,3353.2,0.29874]
[1735490372879,3.72938685,3353.4,3353.2,0.29873]
[1735490372880,3.72937685,3353.4,3353.2,0.29873]
[1735490373287,0.29874,3353.2,3353.1,1.0901]
[1735490373985,0.29874,3353.2,3353.1,1.38885]
[1735490374183,6.63845685,3353.6,3353.1,1.0901]
[1735490374385,0.29873,3353.3,3353.1,1.0901]
[1735490374786,0.29873,3353.3,3353.2,0.29874]
[1735490375578,3.43065685,3353.5,3353.1,1.0901]
[1735490375781,0.29873,3353.4,3353.2,0.29873]
[1735490376292,0.29874,3353.3,3353.1,1.38884]
[1735490376485,0.29874,3353.3,3351.1,1.26107984]
[1735490376486,0.29881,3352.4,3351.5,3.2078]
[1735490376691,5.76662694,3352.4,3351.5,4.3285]
[1735490376988,0.29882,3352.3,3352.1,9.31340805]
[1735490377184,3.49402,3352.3,3352.1,9.31340805]
[1735490377986,3.49402,3352.3,3352.2,5.26585604]
[1735490378191,8.49402,3352.3,3352.2,1.70375604]
[1735490378593,0.29889,3351.5,3351.4,1.252]
[1735490380989,0.2989,3351.4,3351.3,41.9189]
[1735490381192,0.2989,3351.4,3351.3,43.1709]
[1735490385394,3.75219803,3351.8,3351.4,0.29889]
[1735490385694,0.29887,3351.7,3351.4,2.26001694]
[1735490385892,3.45332803,3351.9,3351.4,2.26001694]
[1735490386090,3.45332803,3351.9,3351.3,43.1709]
[1735490386285,0.2989,3351.4,3351.3,43.1709]
[1735490390796,3.2078,3351.8,3351.3,43.1709]
[1735490390797,0.29889,3351.5,3351.3,43.1709]
[1735490391892,0.2989,3351.4,3351.3,43.1709]
[1735490393492,0.29885,3351.7,3351.3,43.46978]
[1735490393791,0.29888,3351.5,3351.3,43.46978]
[1735490394594,0.29888,3351.5,3351.3,43.46979]
[1735490395900,0.29889,3351.4,3351.3,43.46979]
[1735490396403,0.29889,3351.5,3351.3,43.46979]
[1735490397197,0.29894,3350.8,3350.7,3.2078]
[1735490397898,0.29895,3350.7,3350.6,1.1039]
[1735490399095,3.2078,3350.8,3350.1,42.891]
[1735490399299,0.29899,3350.3,3350.2,1.1404]
[1735490399499,0.29902,3350.0,3349.8,3.2078]
[1735490399701,0.29902,3350.0,3349.8,4.3482]
[1735490400702,1.1421,3350.6,3349.8,4.3482]
[1735490401006,0.29899,3350.3,3349.8,4.64723]
[1735490401210,0.29899,3350.3,3349.9,0.29902]
[1735490401404,3.2078,3350.8,3350.0,2.26001694]
[1735490401708,0.29896,3350.7,3350.2,0.299]
[1735490402301,3.2078,3350.8,3350.4,0.29897]
[1735490402495,3.2078,3350.8,3350.6,0.29896]
[1735490403100,0.29891,3351.2,3350.6,2.26001694]
[1735490403305,0.29891,3351.2,3351.0,3.2078]
[1735490403808,0.2989,3351.3,3351.0,4.4508]
[1735490404008,0.2989,3351.3,3351.1,2.286]
[1735490404207,0.29891,3351.2,3351.1,2.286]
[1735490404613,0.29891,3351.3,3351.1,2.286]
[1735490404805,5.3809,3351.8,3351.1,2.286]
[1735490405310,0.2989,3351.3,3351.2,40.8]
[1735490406202,5.3809,3351.8,3351.2,40.8]
[1735490406396,0.29889,3351.4,3351.3,1.1435]
[1735490412115,0.29891,3351.2,3351.1,2.286]
[1735490412312,0.29892,3351.1,3351.0,3.2078]
[1735490412607,0.29892,3351.1,3351.0,1.243]
[1735490414400,0.29892,3351.1,3351.0,4.4508]
[1735490415110,0.29892,3351.1,3351.0,3.2078]
[1735490415308,0.29892,3351.1,3351.0,4.4508]
[1735490415509,0.29892,3351.1,3351.0,1.243]
[1735490416215,0.29891,3351.2,3351.0,1.54192]
[1735490416412,0.29891,3351.2,3351.1,3.1958]
[1735490418416,0.2989,3351.3,3351.1,3.1958]
[1735490418612,0.29891,3351.2,3351.1,3.1958]
[1735490418817,2.92025,3351.8,3351.1,3.1958]
[1735490419012,0.2989,3351.4,3351.3,3.2078]
[1735490420909,3.45332803,3351.9,3351.3,3.2078]
[1735490421314,0.29889,3351.4,3351.3,3.5067]
[1735490422912,3.75218803,3351.8,3351.6,0.29887]
[1735490423116,3.45332803,3351.7,3351.6,0.29887]
[1735490423303,3.45332803,3351.7,3351.3,3.2078]
[1735490423508,0.29887,3351.6,3351.5,0.29888]
[1735490424513,3.75219803,3351.7,3351.5,0.29888]
[1735490424712,0.29887,3351.7,3351.5,0.29888]
[1735490424916,0.29887,3351.7,3350.9,4.69341172]
[1735490424917,0.74723,3351.5,3350.9,4.69341172]
[1735490425112,0.29893,3351.0,3350.9,2.39444477]
[1735490425314,2.26001694,3351.1,3350.4,11.64176007]
[1735490425315,0.29895,3350.7,3350.4,11.64176007]
[1735490425512,5.76676694,3350.7,3350.6,9.20546832]
[1735490426415,5.76676694,3350.7,3349.9,4.4768]
[1735490426416,10.52086894,3350.7,3349.9,4.4768]
[1735490426618,0.29902,3350.0,3349.9,4.4768]
[1735490428513,0.29902,3350.0,3349.9,3.2078]
[1735490429421,0.29901,3350.1,3349.9,3.50682]
[1735490429813,3.45298329,3350.0,3349.9,3.50682]
[1735490430120,3.45298329,3350.0,3349.9,4.77582]
[1735490430720,3.45298329,3350.0,3349.9,45.57582]
[1735490430923,0.29897,3350.5,3349.9,45.2768]
[1735490431225,0.29898,3350.4,3350.2,0.299]
[1735490431722,0.29899,3350.3,3350.1,0.299]
[1735490432125,0.29898,3350.4,3350.2,0.299]
[1735490432624,0.29898,3350.4,3350.3,3.2078]
[1735490433025,0.29897,3350.5,3350.3,3.50678]
[1735490433324,0.29897,3350.5,3350.4,1.27]
[1735490433722,3.45298329,3350.9,3350.4,1.27]
[1735490434119,0.29897,3350.5,3350.4,1.27]
[1735490434624,0.29897,3350.5,3350.4,4.4778]
[1735490438123,0.29897,3350.5,3350.4,3.2078]
[1735490438425,2.26001694,3350.7,3350.1,1.27]
[1735490438426,0.29896,3350.6,3350.1,1.27]
[1735490438625,0.299,3350.2,3350.1,1.27]
[1735490440127,0.29903,3349.9,3349.8,46.2295]
[1735490440331,0.29903,3349.9,3349.8,6.6995]
[1735490440830,0.29903,3349.9,3349.8,5.5987]
[1735490442724,0.29903,3349.9,3349.8,3.2078]
[1735490443228,0.29905,3349.7,3349.5,1.56905]
[1735490443426,0.29903,3349.9,3349.7,0.29903]
[1735490443829,2.29983835,3350.1,3349.5,1.27]
[1735490444026,2.29983835,3350.1,3350.0,0.29902]
[1735490444524,2.29983835,3350.1,3350.0,2.49952]
[1735490444732,2.29983835,3350.1,3350.0,43.29952]
[1735490445029,0.62333835,3350.1,3350.0,43.29952]
[1735490445227,6.05115289,3350.6,3350.0,43.0005]
[1735490445228,0.29897,3350.6,3350.0,43.0005]
[1735490445427,0.29897,3350.6,3350.4,0.29897]
[1735490445631,0.29897,3350.6,3350.5,0.29897]
[1735490445831,0.29897,3350.6,3350.4,1.27]
[1735490446130,0.29897,3350.5,3350.4,1.27]
[1735490448634,3.45130973,3350.9,3350.3,3.2078]
[1735490448936,0.29898,3350.4,3350.3,3.2078]
[1735490449237,3.45130973,3350.9,3350.3,4.77679]
[1735490449238,0.29897,3350.5,3350.3,4.77679]
[1735490449425,0.29898,3350.5,3350.3,4.77679]
[1735490450435,0.29898,3350.5,3350.4,0.29898]
[1735490450933,0.29898,3350.5,3350.3,4.77678]
[1735490451132,0.29898,3350.5,3350.3,4.4778]
[1735490451329,0.29898,3350.5,3350.4,0.29898]
[1735490451525,3.75024973,3350.9,3350.7,0.29895]
[1735490451722,3.45130973,3350.9,3350.8,0.29894]
[1735490451927,3.75023973,3350.9,3350.8,2.51214]
[1735490452126,0.29893,3350.9,3350.8,2.2132]
[1735490452430,3.37491694,3351.0,3350.4,1.1053]
[1735490452630,0.29897,3350.5,3350.4,1.1053]
[1735490453741,0.29897,3350.5,3350.4,1.40428]
[1735490454727,0.29897,3350.5,3350.4,0.29898]
[1735490455127,8.61435667,3351.0,3350.3,0.29898]
[1735490455329,0.29898,3350.5,3350.3,0.29898]
[1735490455535,4.41571694,3351.0,3350.2,5.5949]
[1735490455728,0.29894,3350.9,3350.2,5.5949]
[1735490455928,0.29898,3350.5,3350.3,0.29898]
[1735490456935,7.86702667,3351.0,3350.2,5.5949]
[1735490457140,0.29899,3350.3,3350.2,3.2078]
[1735490457932,1.39789,3350.3,3350.2,3.2078]
[1735490459439,0.29903,3349.8,3349.7,3.50684]
[1735490459737,0.29903,3349.8,3349.7,4.4688]
[1735490459929,1.3979,3350.3,3349.7,6.72881694]
[1735490460130,3.45130973,3350.4,3349.8,3.2078]
[1735490460333,0.299,3350.2,3350.0,0.29901]
[1735490461034,3.45130973,3350.4,3349.8,3.2078]
[1735490461243,3.75028973,3350.4,3350.2,0.29899]
[1735490461537,4.46700973,3350.5,3349.8,3.2078]
[1735490461738,4.76597973,3350.5,3350.4,3.2078]
[1735490462440,4.46700973,3350.5,3350.4,3.2078]
[1735490462637,3.45130973,3350.5,3350.4,3.2078]
[1735490462838,3.45130973,3350.6,3350.4,3.2078]
[1735490463141,3.45130973,3350.6,3350.5,1.34637]
[1735490463344,3.75026973,3350.6,3350.5,1.0474]
[1735490464439,0.29896,3350.6,3350.5,1.0474]
[1735490465343,0.29896,3350.7,3350.5,1.34637]
[1735490465531,3.45130973,3350.9,3350.5,2.3084]
[1735490465737,0.29894,3350.8,3350.6,0.29896]
[1735490466143,3.45130973,3350.9,3350.5,2.3084]
[1735490466334,0.29896,3350.6,3350.5,2.3084]
[1735490466537,0.29895,3350.8,3350.6,0.29896]
[1735490466743,0.29895,3350.8,3350.7,1.0526]
[1735490468241,3.45130973,3350.9,3350.8,0.29894]
[1735490468440,3.45130973,3350.9,3350.8,4.55164]
[1735490468645,4.60174631,3351.0,3350.8,4.55164]
[1735490468646,4.60174631,3351.0,3350.9,0.29893]
[1735490470145,0.29892,3351.2,3351.0,0.29892]
[1735490471145,3.45605852,3351.2,3351.1,0.29891]
[1735490471343,3.45605852,3351.2,3350.8,4.2527]
[1735490471539,3.75496852,3351.2,3351.0,0.29892]
[1735490472248,0.29892,3351.1,3350.9,41.09893]
[1735490472545,3.75496852,3351.2,3350.9,0.29893]
[1735490472746,0.29893,3350.9,3350.8,4.2527]
[1735490472955,0.29893,3350.9,3350.8,3.2078]
[1735490474444,0.29892,3351.1,3350.8,3.2078]
[1735490474648,5.05028846,3350.9,3350.8,3.50674]
[1735490475449,5.34921846,3350.9,3350.8,3.2078]
[1735490476043,3.75672831,3350.9,3350.8,3.2078]
[1735490476254,3.45779831,3350.9,3350.8,3.2078]
[1735490476543,3.45779831,3350.9,3350.8,3.50674]
[1735490476943,3.45779831,3350.9,3350.8,3.2078]
[1735490477241,3.45779831,3350.9,3350.8,3.50674]
[1735490477443,3.63028846,3351.1,3350.8,8.2078]
[1735490477749,5.75218289,3351.3,3351.2,0.29891]
[1735490477944,8.05305605,3352.3,3352.0,0.29884]
[1735490478144,8.05305605,3352.3,3352.0,4.76764]
[1735490479153,8.35186605,3352.3,3352.0,4.76764]
[1735490479648,0.29881,3352.3,3352.0,4.4688]
[1735490479851,0.29881,3352.3,3352.2,0.29882]
[1735490480747,2.1469,3352.5,3352.0,4.4688]
[1735490481051,0.4668,3352.6,3352.4,0.2988]
[1735490481244,0.29879,3352.5,3352.4,0.2988]
[1735490481650,0.76559,3352.6,3352.4,0.2988]
[1735490482056,0.76559,3352.6,3352.5,0.29879]
[1735490482355,0.76559,3352.6,3352.1,41.9109]
[1735490482548,0.29879,3352.5,3352.3,0.2988]
[1735490483350,0.4668,3352.6,3352.4,0.29879]
[1735490483549,0.29879,3352.5,3352.4,0.29879]
[1735490483854,0.29879,3352.5,3352.3,0.29881]
[1735490484153,0.29879,3352.5,3352.4,0.2988]
[1735490484346,0.76559,3352.6,3352.4,0.2988]
[1735490484849,0.4668,3352.6,3352.1,1.1109]
[1735490485054,0.4668,3352.6,3352.2,0.29882]
[1735490485253,0.4668,3352.6,3352.1,1.1109]
[1735490485452,0.4668,3352.6,3352.5,0.29879]
[1735490485651,0.76558,3352.6,3352.1,1.1109]
[1735490485851,0.76558,3352.6,3352.4,0.29879]
[1735490486151,1.0173,3352.7,3352.1,1.1109]
[1735490486358,0.29878,3352.6,3352.4,0.2988]
[1735490486555,0.29879,3352.6,3352.4,0.2988]
[1735490486860,3.2078,3353.4,3352.4,3.2078]
[1735490487053,2.1122,3353.3,3352.6,2.26001694]
[1735490487359,2.41092,3353.3,3353.1,0.29873]
[1735490487552,2.41092,3353.3,3352.9,3.2078]
[1735490487553,2.1122,3353.3,3353.2,0.29873]
[1735490487953,2.1122,3353.3,3353.1,0.29873]
[1735490488260,2.1122,3353.3,3352.9,3.2078]
[1735490488461,2.1122,3353.3,3353.2,0.29873]
[1735490488959,1.0091,3353.4,3352.9,3.2078]
[1735490489161,1.0091,3353.4,3353.3,0.29872]
[1735490489357,2.1122,3353.9,3353.3,4.4668]
[1735490489654,1.0091,3354.0,3353.9,0.29867]
[1735490489861,3.2078,3354.6,3353.9,0.29867]
[1735490489862,1.0779,3354.4,3354.2,0.29864]
[1735490490167,1.0779,3354.4,3354.2,1.259]
[1735490490458,0.29863,3354.3,3354.2,1.259]
[1735490490757,1.0779,3354.4,3354.2,4.76544]
[1735490491662,1.0779,3354.4,3354.3,0.29863]
[1735490492363,1.0209,3354.5,3354.3,0.29863]
[1735490492562,1.0209,3354.5,3354.4,0.29862]
[1735490493763,1.0894,3354.7,3354.6,0.2986]
[1735490493960,2.1955,3355.0,3354.6,3.2078]
[1735490494169,1.3821,3354.7,3354.6,3.2078]
[1735490497159,1.3821,3354.7,3354.6,3.50641]
[1735490497661,0.2986,3354.7,3354.6,3.2078]
[1735490499667,0.29854,3355.4,3355.0,0.29857]
[1735490499866,0.29855,3355.3,3355.1,1.55656]
[1735490500163,2.1198,3355.4,3355.1,1.258]
[1735490500366,0.29855,3355.2,3355.1,1.258]
[1735490500665,0.29855,3355.2,3354.6,3.2078]
[1735490500666,0.2986,3354.7,3354.6,3.2078]
[1735490501463,0.74653,3354.6,3353.4,2.26001694]
[1735490501665,0.29868,3353.8,3353.7,1.258]
[1735490501862,3.50648,3353.8,3353.7,1.258]
[1735490502763,3.2078,3353.8,3353.1,5.46781694]
[1735490502970,0.29872,3353.4,3353.2,1.55673]
[1735490503265,0.29872,3353.3,3353.2,1.258]
[1735490503866,3.2078,3353.8,3353.2,1.258]
[1735490504572,0.29872,3353.3,3353.2,1.258]
[1735490505172,0.29874,3353.2,3352.9,41.09875]
[1735490505373,0.29874,3353.1,3353.0,1.258]
[1735490505770,3.2078,3353.4,3353.0,1.258]
[1735490505970,0.29872,3353.3,3353.1,0.29874]
[1735490506684,3.2078,3353.4,3352.9,40.8]
[1735490506881,0.29875,3353.0,3352.9,40.8]
[1735490507384,3.50655,3353.0,3352.9,40.8]
[1735490507782,0.29877,3352.8,3352.6,1.55678]
[1735490508081,0.29877,3352.9,3352.7,0.29878]
[1735490508286,0.29877,3352.9,3352.8,40.8]
[1735490509087,3.2078,3353.0,3352.8,40.8]
[1735490509385,3.2078,3353.0,3352.9,0.29876]
[1735490509584,3.2078,3353.0,3352.9,1.55776]
[1735490510186,3.2078,3353.4,3353.3,0.29872]
[1735490510386,1.0845,3353.6,3353.2,2.26001694]
[1735490510588,0.2987,3353.5,3353.3,0.29872]
[1735490511084,0.29873,3353.2,3353.0,0.29874]
[1735490511387,0.29874,3353.2,3353.0,0.29874]
[1735490512178,0.29873,3353.3,3353.1,0.29874]
[1735490512696,3.50651,3353.5,3353.3,0.29872]
[1735490512889,3.2078,3353.5,3353.0,1.259]
[1735490513186,0.29871,3353.4,3353.2,0.29873]
[1735490513387,3.2078,3353.5,3353.0,1.259]
[1735490513689,3.50651,3353.5,3353.3,0.29872]
[1735490514085,3.2078,3353.5,3353.4,0.29871]
[1735490515096,3.2078,3353.5,3353.4,41.09871]
[1735490516187,0.29867,3353.9,3353.7,0.29868]
[1735490516484,3.2078,3354.2,3354.1,0.29865]
[1735490517990,0.2986,3354.7,3354.0,0.74665]
[1735490518191,4.2404,3354.8,3354.6,0.29861]
[1735490518486,4.53899,3354.8,3354.7,1.26]
[1735490518693,4.2404,3354.8,3354.7,1.5586]
[1735490518982,4.53899,3354.8,3354.7,1.26]
[1735490519390,3.50639,3354.8,3354.7,1.26]
[1735490520091,3.50639,3354.8,3354.1,1.26]
[1735490520092,3.2078,3354.8,3354.1,1.26]
[1735490520296,0.29864,3354.2,3354.1,1.26]
[1735490520498,3.2078,3354.8,3354.1,1.26]
[1735490520887,3.95429,3354.8,3353.6,3.35321694]
[1735490521090,0.29866,3354.0,3353.9,0.29867]
[1735490521288,0.74655,3354.5,3353.8,4.4678]
[1735490521488,0.29867,3353.9,3353.8,4.4678]
[1735490521695,0.29865,3354.1,3353.9,0.29866]
[1735490522192,1.1086,3354.3,3353.8,4.4678]
[1735490522193,1.40724,3354.3,3354.1,0.29865]
[1735490522385,1.40724,3354.3,3353.9,0.29867]
[1735490522590,1.40724,3354.3,3353.8,4.4678]
[1735490522591,0.29865,3354.2,3353.8,4.4678]
[1735490522896,0.29865,3354.2,3354.0,0.29865]
[1735490524900,0.29865,3354.2,3354.1,0.29865]
[1735490525097,0.29865,3354.2,3354.0,0.29866]
[1735490525294,1.1086,3354.3,3353.9,1.37866]
[1735490525494,0.29866,3354.0,3353.9,1.08]
[1735490525702,0.29866,3354.0,3353.9,1.37867]
[1735490525902,1.1086,3354.3,3353.9,1.08]
[1735490526101,0.29864,3354.3,3354.2,0.29864]
[1735490526299,3.95428,3354.8,3354.2,0.29864]
[1735490526300,0.29863,3354.4,3354.2,0.29864]
[1735490526499,0.29863,3354.4,3354.3,0.29863]
[1735490527398,1.0725,3354.7,3354.3,0.29863]
[1735490527599,0.29862,3354.5,3354.3,0.29863]
[1735490528201,0.29861,3354.6,3353.9,4.45661694]
[1735490528399,0.29861,3354.6,3353.9,6.28698694]
[1735490528704,3.50639,3354.8,3354.7,0.2986]
[1735490529004,3.50639,3354.8,3354.7,42.059]
[1735490531100,3.50639,3354.8,3354.7,1.259]
[1735490531299,4.59509,3354.8,3354.7,1.259]
[1735490532901,4.59509,3354.8,3354.0,41.09866]
[1735490532902,4.2965,3354.8,3354.0,41.09866]
[1735490533107,3.00653694,3354.7,3353.8,4.4668]
[1735490533299,0.29867,3353.9,3353.8,4.4668]
[1735490535012,0.29867,3353.9,3353.8,3.2078]
[1735490535211,0.29867,3353.9,3353.8,4.4668]
[1735490535510,0.29867,3353.9,3353.8,3.2078]
[1735490535712,0.29867,3353.9,3353.8,3.50648]
[1735490536104,1.42084,3354.3,3354.2,0.29864]
[1735490536412,0.29865,3354.2,3354.1,0.29865]
[1735490537304,1.1222,3354.3,3353.8,3.2078]
[1735490537507,1.42084,3354.3,3354.2,0.29864]
[1735490537807,0.2987,3353.6,3353.5,40.8]
[1735490538704,2.2113,3353.7,3353.3,1.259]
[1735490539007,2.2113,3353.7,3352.9,2.1625]
[1735490539211,3.2078,3353.4,3353.3,1.259]
[1735490539412,3.50651,3353.4,3353.3,1.259]
[1735490540105,3.50651,3353.4,3353.3,1.55772]
[1735490540306,3.50651,3353.4,3353.3,1.259]
[1735490540500,2.2113,3353.7,3353.3,1.259]
[1735490540804,3.2078,3353.8,3353.7,0.29869]
[1735490541005,0.29869,3353.7,3353.4,2.26001694]
[1735490541215,4.51953845,3354.0,3353.6,0.29869]
[1735490541412,0.29868,3353.8,3353.7,40.8]
[1735490542315,0.29869,3353.7,3353.5,0.2987]
[1735490543213,1.0686,3354.0,3353.4,40.8]
[1735490543413,3.2078,3353.8,3353.5,1.259]
[1735490543614,0.29869,3353.6,3353.5,1.259]
[1735490544313,3.2078,3353.8,3353.4,40.8]
[1735490544510,3.2078,3353.8,3353.5,1.5577]
[1735490544817,0.29868,3353.8,3353.6,0.29869]
[1735490545009,0.29867,3353.9,3353.7,0.29868]
[1735490546323,2.50995,3354.1,3353.9,0.29866]
[1735490546815,0.29866,3354.0,3353.9,0.29866]
[1735490547313,3.45093845,3354.3,3353.9,3.2078]
[1735490547524,0.29865,3354.2,3354.0,0.29865]
[1735490547717,0.29865,3354.2,3354.1,1.25]
[1735490548919,3.50645,3354.2,3354.1,1.25]
[1735490549109,3.2078,3354.2,3353.1,4.2377]
[1735490549419,0.29872,3353.3,3353.2,1.25]
[1735490549615,0.29873,3353.2,3353.1,1.0299]
[1735490549821,0.29872,3353.3,3353.2,1.25]
[1735490553118,6.65873845,3353.7,3353.2,1.25]
[1735490553520,0.29872,3353.3,3353.2,1.25]
[1735490553923,6.65873845,3353.7,3353.2,1.25]
[1735490554222,3.2078,3353.3,3352.8,2.2809]
[1735490554521,1.1114,3353.2,3352.6,40.8]
[1735490554727,2.2596,3353.1,3352.6,40.8]
[1735490554925,0.29877,3352.8,3352.6,40.8]
[1735490556324,1.13,3353.1,3352.6,43.06001694]
[1735490556627,3.45093845,3353.2,3353.0,2.26001694]
[1735490556822,3.45093845,3353.2,3353.1,2.64374]
[1735490557121,1.86473845,3353.2,3353.1,2.64374]
[1735490557522,1.86473845,3353.2,3353.1,5.85154]
[1735490557824,1.41402827,3354.1,3353.1,10.5528]
[1735490557825,0.00227827,3354.1,3353.1,10.5528]
[1735490558021,0.30092827,3354.1,3353.5,2.26001694]
[1735490558224,0.00227827,3354.1,3353.6,0.2987]
[1735490558525,0.29867,3354.0,3353.5,2.55871694]
[1735490558728,0.29867,3354.0,3353.6,0.29869]
[1735490559124,0.30093827,3354.1,3353.6,0.29869]
[1735490559730,0.29866,3354.0,3353.6,0.29869]
[1735490560026,0.29866,3354.0,3353.7,40.8]
[1735490561128,0.29867,3353.9,3353.7,40.8]
[1735490561525,0.00227827,3354.1,3353.7,45.8]
[1735490561720,0.00227827,3354.1,3354.0,0.29866]
[1735490561921,0.00227827,3354.1,3354.0,1.54966]
[1735490564725,0.00227827,3354.1,3354.0,6.54966]
[1735490564927,0.00227827,3354.1,3354.0,9.75746]